bitfinex/quotes_SOLUSD_20230103
["timestamp","ask_amount","ask_price","bid_price","bid_amount"]
[1672772754424,57.7,13.01,13.0,10.34545968]
[1672772754823,57.69,13.012,13.0,10.34545968]
[1672772755042,30.0,13.011,13.0,10.34545968]
[1672772755248,57.7,13.01,13.0,10.34545968]
[1672772755456,20.0,13.009,13.0,10.34545968]
[1672772755681,87.71,13.008,13.0,10.34545968]
[1672772756404,57.71,13.008,13.0,10.34545968]
[1672772756619,30.0,13.007,13.0,10.34545968]
[1672772757367,57.71,13.008,13.0,10.34545968]
[1672772758113,57.71,13.008,13.0,10.46684222]
[1672772758733,30.0,13.007,13.0,10.46684222]
[1672772758943,30.0,13.005,13.0,10.46684222]
[1672772760005,57.72,13.006,13.0,10.46684222]
[1672772760215,30.0,13.005,13.0,10.46684222]
[1672772760426,113.69976459,13.006,13.0,10.46684222]
[1672772760635,55.97976459,13.005,13.0,10.46684222]
[1672772761165,44.14250436,13.004,13.0,10.46684222]
[1672772761360,57.7,13.008,13.0,10.46684222]
[1672772761569,44.14250436,13.004,13.0,68.21684222]
[1672772761780,20.0,13.009,13.0,68.21684222]
[1672772761993,57.67,13.014,13.0,68.21684222]
[1672772762200,4.75551326,13.012,13.0,10.46684222]
[1672772762427,57.7,13.011,13.0,10.46684222]
[1672772762638,30.0,13.01,13.0,10.46684222]
[1672772762831,57.71,13.009,13.0,10.46684222]
[1672772763263,4.75551326,13.01,13.0,10.07441222]
[1672772763471,60.73527785,13.008,13.0,10.07441222]
[1672772763688,87.72,13.007,13.0,10.07441222]
[1672772763881,148.40436952,13.007,13.0,10.07441222]
[1672772764092,4.75551326,13.006,13.0,9.85992955]
[1672772764308,57.73,13.005,13.0,9.85992955]
[1672772764517,30.0,13.004,13.0,9.85992955]
[1672772764727,57.73,13.003,13.0,9.85992955]
[1672772764941,30.0,13.002,13.0,9.85992955]
[1672772765150,39.85992955,13.0,12.999,21.90523441]
[1672772765366,41.75992955,12.999,12.996,395.9]
[1672772765675,30.0,12.997,12.996,339.75086088]
[1672772765874,57.71,12.997,12.986,466.9292]
[1672772766082,30.0,12.995,12.984,57.82]
[1672772766304,30.0,12.995,12.983,2.4207195]
[1672772766305,57.72,12.994,12.983,2.4207195]
[1672772766527,30.0,12.993,12.983,2.4207195]
[1672772766716,57.73,12.992,12.983,2.4207195]
[1672772766925,30.0,12.991,12.983,2.4207195]
[1672772767133,57.74,12.99,12.983,2.4207195]
[1672772767346,103.99951534,12.99,12.983,2.4207195]
[1672772767571,54.41693363,12.989,12.983,2.4207195]
[1672772767781,46.25951534,12.989,12.983,2.4207195]
[1672772767988,30.0,13.011,12.983,2.4207195]
[1672772768214,16.84,13.01,12.984,57.82]
[1672772768424,84.41693363,13.005,12.987,30.0]
[1672772768606,30.0,13.002,12.987,57.81]
[1672772768825,57.69,13.001,12.987,57.81]
[1672772769028,30.0,13.0,12.987,57.81]
[1672772769241,57.7,12.999,12.987,57.81]
[1672772769462,50.0,12.998,12.987,57.81]
[1672772769672,54.36319694,12.998,12.986,395.9]
[1672772769891,57.71,12.997,12.986,395.9]
[1672772770102,20.0,12.998,12.987,57.81]
[1672772770513,57.68,13.003,12.988,30.0]
[1672772770846,30.0,13.019,12.991,30.0]
[1672772771054,4.36319694,13.008,12.992,168.826]
[1672772771266,4.36319694,13.008,12.993,30.0]
[1672772771473,4.36319694,13.008,12.995,30.0]
[1672772771789,57.72,13.007,12.992,241.341]
[1672772771980,30.0,13.006,12.992,183.561]
[1672772772196,30.0,13.004,12.992,183.561]
[1672772772401,30.0,13.002,12.992,183.561]
[1672772772620,57.74,13.001,12.992,183.561]
[1672772772825,30.0,13.0,12.992,183.561]
[1672772773033,57.75,12.999,12.992,135.3422]
[1672772773243,62.11319694,12.999,12.992,135.3422]
[1672772773473,34.36319694,12.998,12.992,135.3422]
[1672772773666,34.36319694,12.998,12.992,111.046]
[1672772773995,57.75,12.999,12.992,111.046]
[1672772774187,57.75,12.999,12.987,82.6293]
[1672772774188,100.67644897,12.998,12.987,82.6293]
[1672772774400,4.36319694,12.998,12.99,30.0]
[1672772774604,57.7,13.003,12.99,57.79]
[1672772774819,30.0,13.002,12.99,57.79]
[1672772775025,88.78013057,13.002,12.99,57.79]
[1672772775239,88.78013057,13.002,12.987,198.6704]
[1672772775240,105.03964591,13.001,12.987,198.6704]
[1672772775467,30.0,12.999,12.987,140.8604]
[1672772775667,57.72,12.998,12.987,140.8604]
[1672772775991,30.0,12.997,12.987,140.8604]
[1672772776201,105.03964591,12.997,12.987,140.8604]
[1672772776402,105.03964591,12.996,12.987,140.8604]
[1672772776831,100.67644897,12.995,12.987,140.8604]
[1672772777141,105.03964591,12.994,12.984,105.6174]
[1672772777335,57.07087274,12.989,12.984,47.7974]
[1672772777551,57.07087274,12.989,12.979,173.1591]
[1672772777765,50.62271228,12.988,12.979,173.1591]
[1672772778092,46.25951534,12.987,12.979,115.3191]
[1672772778295,100.67644897,12.987,12.98,30.0]
[1672772778501,54.41693363,12.986,12.98,30.0]
[1672772778710,54.41693363,12.986,12.979,115.3191]
[1672772779251,4.36319694,12.99,12.979,115.3191]
[1672772779773,54.41693363,12.99,12.981,30.0]
[1672772779994,4.36319694,12.996,12.984,57.82]
[1672772780199,4.36319694,12.996,12.985,30.0]
[1672772780513,30.0,13.0,12.986,57.81]
[1672772780831,62.08319694,12.999,12.985,30.0]
[1672772781038,54.41693363,13.001,12.986,57.81]
[1672772781253,46.25951534,13.003,12.986,57.81]
[1672772781460,57.7,13.002,12.986,57.81]
[1672772781978,57.69,13.005,12.986,57.81]
[1672772782177,87.68,13.006,12.987,138.1006]
[1672772782382,87.68,13.006,12.989,30.0]
[1672772782705,20.0,13.005,12.99,57.79]
[1672772782918,20.0,13.005,12.989,57.8]
[1672772783752,4.36319694,13.004,12.989,57.8]
[1672772783967,20.0,13.005,12.989,57.8]
[1672772784818,4.36319694,13.004,12.989,57.8]
[1672772785973,57.72,13.003,12.989,57.8]
[1672772786187,30.0,13.002,12.988,71.3131]
[1672772786404,57.7,13.001,12.988,71.3131]
[1672772786713,30.0,13.0,12.988,129.1131]
[1672772786925,30.0,12.998,12.988,129.1131]
[1672772787233,30.0,12.998,12.988,71.3131]
[1672772787448,4.36319694,12.997,12.988,71.3131]
[1672772788293,4.36319694,12.997,12.988,129.1131]
[1672772789227,4.36319694,12.997,12.988,71.3131]
[1672772789425,62.08319694,12.997,12.988,71.3131]
[1672772789752,34.36319694,12.996,12.985,395.9]
[1672772789948,30.0,12.994,12.985,395.9]
[1672772790163,57.73,12.993,12.985,395.9]
[1672772790373,30.0,12.992,12.985,395.9]
[1672772790580,57.74,12.991,12.985,395.9]
[1672772790790,30.0,12.99,12.985,395.9]
[1672772791016,34.36319694,12.99,12.981,380.0529]
[1672772791230,47.34624757,12.989,12.981,380.0529]
[1672772791426,30.0,13.008,12.985,30.0]
[1672772791635,30.0,13.008,12.986,57.81]
[1672772791840,33.75874891,13.006,12.987,30.0]
[1672772792168,33.75874891,13.006,12.988,57.8]
[1672772792682,33.75874891,13.006,12.988,128.8783]
[1672772792888,33.75874891,13.006,12.989,30.0]
[1672772793113,33.75874891,13.006,12.99,57.79]
[1672772793322,30.0,13.005,12.99,57.79]
[1672772793537,16.87,13.0,12.989,109.0674]
[1672772793860,49.83541557,12.999,12.989,109.0674]
[1672772794176,51.04663469,12.989,12.984,57.82]
[1672772794484,30.0,12.996,12.977,109.0674]
[1672772794700,30.0,12.996,12.978,87.85]
[1672772794909,49.76862157,12.995,12.978,57.85]
[1672772795117,30.0,12.994,12.979,71.0783]
[1672772795313,9.688,12.993,12.98,57.84]
[1672772795525,59.45662157,12.993,12.98,57.84]
[1672772795735,79.76862157,12.992,12.98,57.84]
[1672772796157,59.45862157,12.991,12.98,57.84]
[1672772796375,30.0,12.99,12.979,71.0783]
[1672772796587,2.42,12.983,12.961,30.0]
[1672772796796,83.18940718,12.988,12.971,108.5355]
[1672772796993,79.76855922,12.988,12.972,30.0]
[1672772797202,49.76855922,12.987,12.975,57.86]
[1672772797841,30.0,12.989,12.975,57.86]
[1672772798055,30.0,12.99,12.975,57.86]
[1672772799031,73.16629255,12.99,12.975,57.86]
[1672772800061,43.16629255,12.99,12.975,57.86]
[1672772800793,30.0,12.989,12.975,57.86]
[1672772801211,73.16629255,12.989,12.975,57.86]
[1672772801616,9.689,12.988,12.972,322.47]
[1672772802054,30.0,12.986,12.972,322.47]
[1672772802263,9.692,12.985,12.972,322.47]
[1672772803193,52.85829255,12.985,12.972,322.47]
[1672772803400,30.0,12.983,12.972,322.47]
[1672772803614,39.693,12.983,12.972,322.47]
[1672772804036,45.16674697,12.983,12.972,264.6]
[1672772804246,43.16629255,12.982,12.972,264.6]
[1672772804477,43.16629255,12.982,12.96,16.92]
[1672772804478,30.0,12.98,12.96,16.92]
[1672772804690,30.0,12.98,12.962,264.6]
[1672772804691,2.4207195,12.974,12.962,264.6]
[1672772804882,9.694,12.973,12.962,264.6]
[1672772805093,5.47374697,12.973,12.962,264.6]
[1672772805417,58.52528161,12.972,12.962,264.6]
[1672772805841,48.83028161,12.971,12.962,264.6]
[1672772806260,48.83028161,12.971,12.961,264.6]
[1672772806787,43.17000167,12.977,12.962,57.92]
[1672772807107,5.47374697,12.98,12.965,57.9]
[1672772807312,48.83028161,12.976,12.965,57.9]
[1672772807625,30.0,12.975,12.965,57.9]
[1672772807817,35.47374697,12.975,12.962,57.92]
[1672772808027,35.47374697,12.975,12.961,264.6]
[1672772808028,54.30402858,12.974,12.961,264.6]
[1672772808243,48.83028161,12.974,12.961,264.6]
[1672772808451,30.0,12.972,12.962,57.92]
[1672772808682,20.0,12.971,12.962,57.92]
[1672772809218,48.83028161,12.97,12.961,264.6]
[1672772809401,48.83028161,12.97,12.962,57.92]
[1672772810453,48.83028161,12.97,12.961,264.6]
[1672772810682,30.0,12.968,12.961,264.6]
[1672772810993,30.0,12.968,12.958,72.9878]
[1672772811206,30.0,12.966,12.958,72.9878]
[1672772811616,48.83028161,12.965,12.958,72.9878]
[1672772813184,9.685,12.973,12.959,57.93]
[1672772813395,48.83028161,12.971,12.959,57.93]
[1672772813822,9.687,12.97,12.959,57.93]
[1672772814236,30.0,12.968,12.958,130.9178]
[1672772814664,48.83028161,12.967,12.958,130.9178]
[1672772814873,30.0,12.966,12.958,130.9178]
[1672772815310,48.83028161,12.967,12.958,130.9178]
[1672772815508,39.686,12.971,12.958,130.9178]
[1672772815730,30.0,12.971,12.958,130.9178]
[1672772815925,9.685,12.973,12.959,30.0]
[1672772816130,39.684,12.974,12.96,57.93]
[1672772816344,48.83028161,12.972,12.96,57.93]
[1672772816976,20.0,12.971,12.96,57.93]
[1672772817607,68.83028161,12.971,12.96,57.93]
[1672772818880,74.30402858,12.971,12.96,57.93]
[1672772819089,30.0,12.97,12.96,57.93]
[1672772819414,48.83028161,12.969,12.96,57.93]
[1672772819611,48.83028161,12.969,12.959,69.1767]
[1672772820146,30.0,12.968,12.959,69.1767]
[1672772820562,30.0,12.966,12.959,69.1767]
[1672772820974,78.83028161,12.966,12.959,69.1767]
[1672772822362,78.83028161,12.966,12.959,333.7767]
[1672772822363,48.83028161,12.966,12.959,333.7767]
[1672772823919,9.686,12.97,12.959,333.7767]
[1672772824142,48.83028161,12.968,12.96,57.93]
[1672772825104,48.83028161,12.968,12.959,69.1767]
[1672772826676,48.83028161,12.968,12.96,57.93]
[1672772826884,48.83028161,12.968,12.959,69.1767]
[1672772827615,48.83028161,12.968,12.96,57.93]
[1672772827940,48.83028161,12.968,12.959,69.1767]
[1672772828127,30.0,12.967,12.959,69.1767]
[1672772828555,30.0,12.965,12.959,69.1767]
[1672772828764,30.0,12.965,12.958,57.93]
[1672772828986,45.36866484,12.964,12.956,57.94]
[1672772829420,45.36866484,12.964,12.951,108.8442]
[1672772829421,45.36866484,12.964,12.955,57.95]
[1672772829630,30.0,12.962,12.952,57.96]
[1672772829945,30.0,12.96,12.952,57.96]
[1672772830351,30.0,12.962,12.952,57.96]
[1672772830796,75.36866484,12.962,12.952,57.96]
[1672772830993,45.36866484,12.962,12.952,57.96]
[1672772831211,52.86100167,12.965,12.952,57.96]
[1672772831417,43.17000167,12.965,12.952,57.96]
[1672772831618,45.36866484,12.965,12.952,57.96]
[1672772831830,39.688,12.964,12.952,57.96]
[1672772832151,45.36866484,12.963,12.952,57.96]
[1672772832364,30.0,12.962,12.952,57.96]
[1672772833181,20.0,12.961,12.952,57.96]
[1672772833606,30.0,12.965,12.952,57.96]
[1672772833939,9.683,12.971,12.955,57.95]
[1672772834780,9.683,12.971,12.955,105.0892]
[1672772834985,15.15674697,12.971,12.955,105.0892]
[1672772835310,9.686,12.973,12.956,30.0]
[1672772835504,30.0,12.979,12.96,16.88]
[1672772835711,5.47374697,12.978,12.961,57.92]
[1672772836137,45.36866484,12.977,12.961,57.92]
[1672772836349,45.36866484,12.977,12.962,116.7002]
[1672772836557,45.36866484,12.977,12.963,57.91]
[1672772836768,50.84241181,12.977,12.963,57.91]
[1672772836982,30.0,12.976,12.963,57.91]
[1672772837398,80.84241181,12.976,12.963,57.91]
[1672772837605,75.36866484,12.976,12.963,57.91]
[1672772837817,9.689,12.975,12.963,57.91]
[1672772838036,30.0,12.974,12.962,174.6202]
[1672772838246,9.69,12.973,12.962,174.6202]
[1672772838456,30.0,12.972,12.962,174.6202]
[1672772838674,75.36866484,12.972,12.962,174.6202]
[1672772838866,65.36866484,12.971,12.962,174.6202]
[1672772839081,30.0,12.97,12.962,116.7002]
[1672772839300,75.36866484,12.97,12.961,69.0832]
[1672772839496,45.36866484,12.969,12.961,69.0832]
[1672772840668,30.0,12.968,12.961,69.0832]
[1672772841088,1.04,12.962,12.961,69.0832]
[1672772841303,1.04,12.962,12.958,57.93]
[1672772843610,1.04,12.962,12.959,30.0]
[1672772843826,1.04,12.962,12.961,30.0]
[1672772844037,20.0,12.973,12.961,87.92]
[1672772844237,9.684,12.975,12.963,30.0]
[1672772844453,9.681,12.979,12.964,57.91]
[1672772844667,9.681,12.979,12.964,177.0118]
[1672772845104,55.04966484,12.979,12.964,177.0118]
[1672772846768,39.686,12.981,12.964,177.0118]
[1672772847734,39.686,12.981,12.965,47.0267]
[1672772847917,39.686,12.981,12.966,57.9]
[1672772848132,20.0,12.98,12.966,57.9]
[1672772851074,39.685,12.982,12.966,57.9]
[1672772851075,5.47374697,12.982,12.97,16.8]
[1672772851294,5.47374697,12.982,12.966,57.9]
[1672772851513,5.47374697,12.982,12.965,57.9]
[1672772851703,29.686,12.981,12.965,57.9]
[1672772852141,35.15974697,12.981,12.965,57.9]
[1672772852464,35.15974697,12.981,12.965,103.9699]
[1672772853817,20.0,12.981,12.965,103.9699]
[1672772854559,30.0,12.98,12.965,103.9699]
[1672772854881,85.05566484,12.98,12.965,103.9699]
[1672772856138,85.05566484,12.98,12.965,57.9]
[1672772856361,94.55011781,12.965,12.964,119.1018]
[1672772856668,58.39321496,12.965,12.954,2.4207195]
[1672772856850,119.05611993,12.965,12.958,57.93]
[1672772857065,60.66290497,12.965,12.955,57.95]
[1672772858341,9.693,12.973,12.955,57.95]
[1672772858659,66.13665194,12.97,12.956,46.06]
[1672772858870,66.13665194,12.97,12.957,57.94]
[1672772859064,20.0,12.969,12.957,57.94]
[1672772859490,30.0,12.972,12.957,57.94]
[1672772859717,30.0,12.972,12.957,105.8844]
[1672772859906,30.0,12.972,12.96,13.51]
[1672772860120,30.0,12.972,12.961,57.92]
[1672772860855,60.66290497,12.971,12.961,57.92]
[1672772861065,30.0,12.97,12.961,57.92]
[1672772862755,20.0,12.969,12.961,57.92]
[1672772862970,30.0,12.968,12.961,57.92]
[1672772863172,98.48006018,12.968,12.956,57.94]
[1672772863385,30.0,12.966,12.955,57.95]
[1672772864021,60.66290497,12.965,12.955,57.95]
[1672772864542,98.48006018,12.964,12.955,57.95]
[1672772864949,30.0,12.962,12.955,57.95]
[1672772865379,92.70921496,12.962,12.955,57.95]
[1672772865999,221.85218011,12.962,12.955,57.95]
[1672772867589,191.85218011,12.962,12.955,57.95]
[1672772868859,191.85218011,12.962,12.954,50.4707195]
[1672772868860,30.0,12.961,12.954,50.4707195]
[1672772869049,42.39767124,12.96,12.954,2.4207195]
[1672772869256,30.0,12.959,12.954,2.4207195]
[1672772869466,221.85218011,12.959,12.954,2.4207195]
[1672772869677,191.85218011,12.958,12.954,2.4207195]
[1672772869901,123.37211993,12.958,12.954,2.4207195]
[1672772870095,9.687,12.966,12.955,57.95]
[1672772870305,39.686,12.969,12.955,57.95]
[1672772870516,60.66290497,12.965,12.955,57.95]
[1672772872743,9.686,12.969,12.955,57.95]
[1672772872939,118.5625,12.971,12.955,57.95]
[1672772872940,118.5625,12.971,12.96,13.45]
[1672772873155,5.46782998,12.974,12.961,57.92]
[1672772873377,5.46782998,12.97,12.955,57.95]
[1672772873575,51.31407158,12.97,12.955,128.5254]
[1672772873784,45.8462416,12.969,12.955,128.5254]
[1672772873994,51.31407158,12.969,12.955,128.5254]
[1672772874218,103.74364321,12.969,12.955,128.5254]
[1672772874415,91.00507158,12.968,12.955,70.5754]
[1672772874843,30.0,12.966,12.955,70.5754]
[1672772875037,9.693,12.965,12.955,70.5754]
[1672772875248,30.0,12.964,12.955,70.5754]
[1672772875457,9.694,12.963,12.955,70.5754]
[1672772875669,15.16182998,12.963,12.955,70.5754]
[1672772875878,30.0,12.962,12.954,2.4207195]
[1672772876099,9.696,12.961,12.954,2.4207195]
[1672772876305,30.0,12.96,12.954,2.4207195]
[1672772876510,30.0,12.958,12.954,2.4207195]
[1672772876952,9.687,12.957,12.954,2.4207195]
[1672772877138,30.0,12.956,12.954,2.4207195]
[1672772877349,131.63420534,12.956,12.954,2.4207195]
[1672772877564,49.20463371,12.955,12.954,2.4207195]
[1672772878406,101.63420534,12.955,12.954,2.4207195]
[1672772878619,107.10203532,12.955,12.954,0.0007195]
[1672772879036,101.63420534,12.955,12.954,0.0007195]
[1672772880305,107.10203532,12.955,12.954,0.0007195]
[1672772882851,30.0,12.954,12.945,57.99]
[1672772883163,52.42957163,12.953,12.941,58.01]
[1672772883570,50.0,12.952,12.941,58.01]
[1672772883779,30.0,12.951,12.941,58.01]
[1672772883996,82.42957163,12.951,12.941,58.01]
[1672772884617,52.42957163,12.951,12.941,58.01]
[1672772885040,30.0,12.95,12.941,58.01]
[1672772885255,52.42957163,12.951,12.941,58.01]
[1672772885890,9.687,12.956,12.94,13.52]
[1672772885891,9.683,12.958,12.945,57.99]
[1672772886106,1.04,12.954,12.945,57.99]
[1672772887455,50.24463371,12.954,12.945,57.99]
[1672772888295,102.67420534,12.954,12.945,57.99]
[1672772894324,102.67420534,12.954,12.944,97.9417319]
[1672772896313,102.67420534,12.954,12.944,39.9417319]
[1672772897454,30.0,12.953,12.944,39.9417319]
[1672772897886,101.63420534,12.952,12.944,39.9417319]
[1672772898306,49.20463371,12.951,12.944,39.9417319]
[1672772899146,58.89363371,12.951,12.944,39.9417319]
[1672772899360,157.08642035,12.951,12.944,39.9417319]
[1672772899673,49.20463371,12.95,12.944,39.9417319]
[1672772900098,62.11957163,12.949,12.944,39.9417319]
[1672772900622,49.20463371,12.948,12.944,39.9417319]
[1672772902070,52.42957163,12.949,12.944,39.9417319]
[1672772902922,20.0,12.948,12.944,39.9417319]
[1672772904200,49.20463371,12.947,12.944,39.9417319]
[1672772904606,54.67743345,12.947,12.944,39.9417319]
[1672772905239,49.20463371,12.946,12.944,39.9417319]
[1672772907022,72.42957163,12.948,12.944,39.9417319]
[1672772907232,49.20463371,12.946,12.944,39.9417319]
[1672772907452,72.42957163,12.948,12.944,39.9417319]
[1672772908384,1.04,12.95,12.944,39.9417319]
[1672772908612,1.04,12.95,12.945,57.99]
[1672772908808,1.04,12.95,12.944,39.9417319]
[1672772911878,1.04,12.95,12.945,30.0]
[1672772912185,1.04,12.95,12.945,87.99]
[1672772913556,52.42957163,12.956,12.945,87.99]
[1672772913557,112.9113,12.959,12.946,20.0]
[1672772913763,20.0,12.971,12.951,30.0]
[1672772913961,116.4762,12.97,12.952,57.96]
[1672772914178,30.0,12.969,12.952,57.96]
[1672772914505,9.678,12.968,12.951,57.97]
[1672772914719,15.15079974,12.968,12.951,105.6028]
[1672772915029,5.47279974,12.967,12.951,105.6028]
[1672772915237,5.47279974,12.967,12.952,114.2182]
[1672772915435,5.47279974,12.967,12.953,57.96]
[1672772915986,39.686,12.969,12.954,30.0]
[1672772916300,39.686,12.969,12.955,57.95]
[1672772916490,20.0,12.968,12.955,57.95]
[1672772917127,20.0,12.967,12.96,13.57]
[1672772917328,9.683,12.972,12.96,13.57]
[1672772917538,20.0,12.971,12.961,57.92]
[1672772917965,9.685,12.97,12.958,177.651]
[1672772918291,15.15779974,12.97,12.958,177.651]
[1672772918512,5.47279974,12.969,12.958,177.651]
[1672772919349,5.47279974,12.969,12.96,13.57]
[1672772919853,9.687,12.97,12.96,13.57]
[1672772920063,15.15779974,12.972,12.96,13.57]
[1672772920494,5.47279974,12.97,12.96,13.57]
[1672772920701,5.47279974,12.97,12.961,57.92]
[1672772921951,5.47279974,12.97,12.96,13.57]
[1672772922388,5.47279974,12.97,12.961,57.92]
[1672772923643,20.0,12.969,12.961,57.92]
[1672772924059,25.47279974,12.969,12.961,57.92]
[1672772924389,20.0,12.969,12.961,57.92]
[1672772924694,20.0,12.968,12.961,57.92]
[1672772925122,20.0,12.967,12.961,57.92]
[1672772925540,5.47279974,12.97,12.961,57.92]
[1672772925758,20.0,12.969,12.961,57.92]
[1672772927323,5.47279974,12.972,12.961,57.92]
[1672772927846,9.689,12.971,12.96,13.57]
[1672772928062,9.689,12.971,12.959,264.6]
[1672772928284,5.47279974,12.97,12.959,264.6]
[1672772928488,9.69,12.969,12.959,57.93]
[1672772928703,9.69,12.969,12.958,119.721]
[1672772928906,5.47279974,12.968,12.958,119.721]
[1672772929121,9.689,12.97,12.958,119.721]
[1672772929329,5.47279974,12.968,12.959,57.93]
[1672772929739,30.0,12.971,12.959,57.93]
[1672772929957,5.47279974,12.969,12.959,57.93]
[1672772930909,20.0,12.968,12.959,57.93]
[1672772931323,5.47279974,12.967,12.959,57.93]
[1672772931737,9.685,12.975,12.96,13.57]
[1672772931940,5.47279974,12.973,12.961,57.92]
[1672772932161,5.47279974,12.973,12.962,30.0]
[1672772932374,5.47279974,12.973,12.963,57.91]
[1672772932912,5.47279974,12.973,12.964,30.0]
[1672772933217,12.1037195,12.977,12.966,30.0]
[1672772933417,7.89351924,12.977,12.967,57.89]
[1672772933836,7.89351924,12.977,12.966,57.9]
[1672772934040,7.89351924,12.977,12.967,30.0]
[1672772934254,7.89351924,12.977,12.968,57.89]
[1672772934490,2.4207195,12.977,12.966,57.9]
[1672772935305,2.4207195,12.977,12.966,106.5168]
[1672772936775,35.71070896,12.977,12.964,57.91]
[1672772936985,39.69,12.976,12.959,57.93]
[1672772937201,39.69,12.976,12.955,57.95]
[1672772937411,120.04961428,12.975,12.955,57.95]
[1672772937641,30.0,12.973,12.955,57.95]
[1672772937860,9.693,12.972,12.956,45.4271]
[1672772938157,13.57,12.97,12.957,57.94]
[1672772938372,39.696,12.969,12.957,57.94]
[1672772938593,78.01928666,12.969,12.956,57.94]
[1672772938991,48.01928666,12.969,12.956,57.94]
[1672772939424,20.0,12.968,12.956,103.5721]
[1672772940144,58.32328666,12.968,12.956,103.5721]
[1672772940567,30.0,12.967,12.956,103.5721]
[1672772941636,68.32328666,12.967,12.956,103.5721]
[1672772942676,107.40639927,12.967,12.956,45.6321]
[1672772942889,159.73761428,12.967,12.956,45.6321]
[1672772946584,159.73761428,12.967,12.952,57.96]
[1672772946772,159.73761428,12.967,12.945,172.7385]
[1672772946986,42.86922635,12.966,12.945,244.8052]
[1672772947309,42.39598445,12.964,12.945,244.8052]
[1672772947524,30.0,12.962,12.945,197.2281]
[1672772947918,72.64321501,12.962,12.945,197.2281]
[1672772948136,9.691,12.961,12.945,197.2281]
[1672772948355,9.691,12.961,12.946,48.7817]
[1672772948554,30.0,12.959,12.947,57.98]
[1672772949088,68.32328666,12.959,12.947,57.98]
[1672772949307,114.25983501,12.959,12.947,57.98]
[1672772949528,156.72294762,12.959,12.947,57.98]
[1672772950368,9.689,12.958,12.946,48.7817]
[1672772950680,126.72294762,12.957,12.946,48.7817]
[1672772950892,30.0,12.956,12.946,48.7817]
[1672772951105,68.32328666,12.956,12.946,48.7817]
[1672772951501,114.25983501,12.956,12.946,48.7817]
[1672772951718,30.0,12.954,12.946,48.7817]
[1672772951928,38.32328666,12.955,12.946,48.7817]
[1672772954662,45.93654835,12.956,12.946,48.7817]
[1672772954873,78.00628666,12.961,12.947,57.98]
[1672772955091,89.42607035,12.96,12.947,57.98]
[1672772955294,89.42607035,12.96,12.946,57.99]
[1672772955499,89.42607035,12.96,12.946,105.7042]
[1672772955938,39.685,12.959,12.946,105.7042]
[1672772956131,39.685,12.959,12.946,57.99]
[1672772956462,82.14811261,12.959,12.946,57.99]
[1672772956676,82.14811261,12.959,12.946,105.7042]
[1672772957703,20.0,12.958,12.946,105.7042]
[1672772958143,38.32328666,12.957,12.946,47.7142]
[1672772958454,118.38918296,12.956,12.946,47.7142]
[1672772958853,75.92607035,12.955,12.946,47.7142]
[1672772960895,45.92607035,12.955,12.946,47.7142]
[1672772961100,110.78639927,12.956,12.946,47.7142]
[1672772961616,30.0,12.955,12.946,47.7142]
[1672772962770,68.32328666,12.955,12.946,47.7142]
[1672772963922,38.32328666,12.955,12.946,47.7142]